bitfinex-derivatives/quotes_SOLF0:USTF0_20260202
["timestamp","ask_amount","ask_price","bid_price","bid_amount"]
[1770000121604,11.35633658,101.38,101.28,138.3633]
[1770000121816,11.35557703,101.36,101.26,138.3908]
[1770000122210,374.87557703,101.36,101.26,138.3908]
[1770000122410,374.87557703,101.36,101.28,138.3755]
[1770000122709,374.79557703,101.38,101.29,146.12502842]
[1770000122911,374.79557703,101.38,101.3,138.3484]
[1770000123110,11.35557703,101.41,101.32,138.3192]
[1770000123303,20.23977703,101.41,101.32,138.3192]
[1770000124110,11.35557703,101.41,101.34,8.8902]
[1770000124615,11.3589828,101.4,101.34,8.8902]
[1770000124811,11.3589828,101.4,101.31,138.3284]
[1770000125012,11.3589828,101.4,101.33,138.306]
[1770000125511,11.3589828,101.4,101.35,8.8893]
[1770000125711,11.3589828,101.4,101.31,138.3284]
[1770000125913,11.35832541,101.37,101.28,146.12612842]
[1770000126711,11.35832541,101.37,101.3,138.3474]
[1770000126915,11.35832541,101.37,101.29,138.3575]
[1770000127117,314.64,101.38,101.31,138.3347]
[1770000127306,11.35832541,101.4,101.31,138.3347]
[1770000127716,20.24397294,101.39,101.32,8.8918]
[1770000127916,11.35807294,101.38,101.29,138.3575]
[1770000128214,11.35807294,101.38,101.28,7.76302842]
[1770000128215,11.35807294,101.37,101.28,7.76302842]
[1770000128415,374.55807294,101.36,101.27,138.3892]
[1770000129008,20.24757294,101.35,101.28,8.8947]
[1770000129215,11.35807294,101.35,101.25,138.4059]
[1770000129518,11.35807294,101.34,101.25,138.4059]
[1770000129719,11.35807294,101.34,101.25,138.4161]
[1770000130417,11.3588023,101.32,101.24,7.76302842]
[1770000130618,11.3588023,101.32,101.23,138.4428]
[1770000131417,383.2110023,101.32,101.23,138.4428]
[1770000131618,11.35521967,101.31,101.22,146.20872842]
[1770000131820,8.8932,101.31,101.24,8.899]
[1770000132120,11.35521967,101.3,101.24,8.899]
[1770000132518,11.35521967,101.3,101.25,8.8981]
[1770000132714,11.35521967,101.33,101.24,146.19102842]
[1770000133121,11.35521967,101.33,101.27,8.8963]
[1770000133323,11.35521967,101.33,101.25,138.41]
[1770000133521,11.35521967,101.33,101.24,146.19102842]
[1770000134426,362.78,101.34,101.26,138.4031]
[1770000135023,362.78,101.34,101.28,8.8953]
[1770000135212,362.78,101.34,101.28,138.3743]
[1770000135412,11.32658188,101.35,101.28,138.3743]
[1770000135623,11.32658188,101.35,101.29,8.8944]
[1770000136120,11.32108005,101.38,101.3,146.14845312]
[1770000136526,11.32108005,101.38,101.32,8.8917]
[1770000137521,11.32108005,101.37,101.29,138.3619]
[1770000138019,258.1,101.4,101.32,138.3208]
[1770000138222,269.39413541,101.4,101.31,138.3329]
[1770000138620,269.39413541,101.4,101.33,8.8911]
[1770000139515,269.39413541,101.4,101.31,138.3329]
[1770000139516,11.29413541,101.39,101.31,138.3329]
[1770000140414,20.18023541,101.39,101.31,8.8921]
[1770000140613,11.29082295,101.38,101.3,146.14585312]
[1770000140821,11.29082295,101.38,101.3,16.69305312]
[1770000141125,11.29082295,101.37,101.28,319.78]
[1770000141322,11.29082295,101.37,101.28,458.1554]
[1770000141525,11.29082295,101.37,101.3,8.8937]
[1770000141721,11.29082295,101.37,101.29,146.16195312]
[1770000142022,11.29082295,101.37,101.31,8.8928]
[1770000142726,11.29082295,101.37,101.32,8.892]
[1770000143321,362.84,101.38,101.31,138.3332]
[1770000143524,11.2886637,101.4,101.33,8.8909]
[1770000144427,11.2886637,101.4,101.34,8.8901]
[1770000144622,11.2886637,101.4,101.34,138.2934]
[1770000144924,11.2887002,101.42,101.33,7.80005312]
[1770000145523,20.1720002,101.42,101.35,8.8893]
[1770000145729,363.54,101.43,101.35,146.07625312]
[1770000146022,374.8294165,101.43,101.35,7.80005312]
[1770000146526,11.2894165,101.42,101.33,146.10675312]
[1770000146729,363.54,101.43,101.34,138.2923]
[1770000147023,363.54,101.43,101.36,8.8885]
[1770000147222,363.54,101.43,101.35,146.07945312]
[1770000147424,11.2894165,101.48,101.38,138.2372]
[1770000147632,11.2894165,101.48,101.4,138.2117]
[1770000147927,11.2894165,101.48,101.41,8.884]
[1770000148128,11.2894165,101.48,101.41,145.99665312]
[1770000148324,11.27689503,101.51,101.41,145.99665312]
[1770000148729,20.15299503,101.51,101.43,8.8822]
[1770000149028,11.27689503,101.51,101.41,138.1966]
[1770000149222,11.27689503,101.51,101.41,145.99665312]
[1770000149618,20.15249503,101.51,101.43,8.8822]
[1770000150018,11.27689503,101.51,101.44,138.1571]
[1770000150222,11.27689503,101.51,101.43,145.97005312]
[1770000150420,11.275172,101.54,101.46,138.1253]
[1770000150623,11.275172,101.54,101.47,7.80005312]
[1770000151125,11.275172,101.54,101.44,145.95675312]
[1770000151325,11.275172,101.54,101.45,138.1436]
[1770000151727,11.275172,101.54,101.46,147.0092]
[1770000151928,11.275172,101.54,101.47,138.1151]
[1770000152132,11.27353317,101.57,101.48,145.90005312]
[1770000152330,11.27353317,101.57,101.49,8.8769]
[1770000152929,11.27353317,101.57,101.5,8.876]
[1770000153427,11.27353317,101.6,101.51,146.937]
[1770000153628,11.27353317,101.6,101.52,138.0468]
[1770000153832,11.27353317,101.6,101.52,145.84685312]
[1770000154627,11.27353317,101.6,101.52,7.80005312]
[1770000154827,11.27353317,101.6,101.51,138.062]
[1770000155128,11.28051123,101.59,101.52,8.8742]
[1770000155633,11.28051123,101.59,101.5,145.87245312]
[1770000155634,11.28051123,101.59,101.5,145.87565312]
[1770000156028,11.28051123,101.59,101.5,8.8757]
[1770000156732,11.28675415,101.58,101.48,154.77905312]
[1770000156927,11.28675415,101.58,101.48,145.90135312]
[1770000157125,137.9824,101.57,101.48,7.80005312]
[1770000157323,11.28675415,101.56,101.46,145.91775312]
[1770000157524,11.28675415,101.56,101.47,138.1161]
[1770000157722,11.29916754,101.55,101.47,8.8783]
[1770000158332,11.29916754,101.54,101.45,147.0131]
[1770000159531,11.29916754,101.54,101.46,145.92915312]
[1770000159735,11.29916754,101.54,101.47,138.1156]
[1770000160233,11.3120685,101.57,101.48,154.78015312]
[1770000160434,11.3120685,101.56,101.48,8.8778]
[1770000160734,20.1833685,101.56,101.48,8.8778]
[1770000161131,20.1817685,101.58,101.49,8.8769]
[1770000161429,20.1817685,101.58,101.49,138.0861]
[1770000161430,11.3120685,101.58,101.49,138.0861]
[1770000162028,11.3120685,101.58,101.5,138.0738]
[1770000162226,11.32095531,101.6,101.5,145.87385312]
[1770000162427,11.32095531,101.59,101.5,145.87385312]
[1770000162736,11.32095531,101.59,101.51,8.8752]
[1770000163038,11.32095531,101.59,101.52,8.8743]
[1770000163337,11.32095531,101.58,101.48,145.90155312]
[1770000163639,11.32572489,101.57,101.49,8.8765]
[1770000164329,11.32572489,101.55,101.47,138.116]
[1770000165137,11.32572489,101.55,101.48,8.8778]
[1770000168135,11.32572489,101.55,101.46,8.8791]
[1770000168136,11.33676004,101.53,101.46,8.8791]
[1770000168837,11.33676004,101.53,101.4,138.1995]
[1770000168838,11.33676004,101.51,101.4,138.1995]
[1770000169036,11.33676004,101.5,101.42,138.1844]
[1770000169445,11.33676004,101.5,101.42,147.0669]
[1770000169647,11.33676004,101.5,101.42,138.1844]
[1770000170145,11.33676004,101.5,101.44,8.8813]
[1770000170537,11.33988339,101.49,101.4,138.1995]
[1770000171444,20.21818339,101.48,101.41,8.8838]
[1770000171645,19.14070763,101.5,101.4,138.2102]
[1770000171945,11.34065451,101.49,101.41,138.1981]
[1770000172445,11.34065451,101.52,101.43,138.1668]
[1770000173843,11.35601072,101.5,101.43,8.8818]
[1770000174144,11.35601072,101.46,101.38,382.06929003]
[1770000175342,20.23591072,101.46,101.39,8.8854]
[1770000175645,20.23591072,101.46,101.38,382.06929003]
[1770000175646,11.35601072,101.46,101.38,520.30729003]
[1770000176148,11.35601072,101.46,101.4,8.8848]
[1770000177642,368.4981,101.48,101.41,8.8841]
[1770000177848,359.62,101.48,101.41,8.8841]
[1770000179849,11.32881632,101.47,101.39,8.8851]
[1770000180249,11.32881632,101.44,101.38,382.06929003]
[1770000180646,11.32881632,101.46,101.38,520.30739003]
[1770000180953,20.20771632,101.47,101.38,528.10744315]
[1770000181151,11.32881632,101.45,101.38,382.06929003]
[1770000181545,371.82881632,101.45,101.38,382.06929003]
[1770000181947,11.32756808,101.44,101.38,382.06929003]
[1770000182140,11.32756808,101.43,101.38,382.06929003]
[1770000182445,11.32756808,101.43,101.34,138.2817]
[1770000182749,8.8842,101.41,101.34,8.8902]
[1770000183145,20.21176808,101.41,101.34,8.8902]
[1770000183445,11.32756808,101.39,101.3,1.7139902]
[1770000183652,11.3566559,101.38,101.29,138.3526]
[1770000183842,11.3566559,101.38,101.27,138.3884]
[1770000183843,11.3566559,101.36,101.27,138.3884]
[1770000184044,11.3566559,101.36,101.28,138.3724]
[1770000184447,372.3366559,101.39,101.29,138.3563]
[1770000184646,372.3366559,101.39,101.3,138.3453]
[1770000184853,519.4494559,101.39,101.29,147.2503]
[1770000185151,20.2428559,101.39,101.3,138.3471]
[1770000186252,11.3566559,101.39,101.31,138.3314]
[1770000186455,147.0938,101.41,101.32,138.3189]
[1770000186456,8.8847,101.41,101.32,138.3189]
[1770000186754,11.38712759,101.41,101.33,8.8908]
[1770000187054,11.38712759,101.41,101.33,147.1942]
[1770000187248,11.38712759,101.39,101.3,328.44005312]
[1770000187453,11.38712759,101.39,101.29,138.3594]
[1770000188352,158.49942759,101.39,101.3,8.8935]
[1770000188556,20.27352759,101.39,101.3,8.8935]
[1770000188756,20.27352759,101.39,101.3,146.14555312]
[1770000189147,20.27717643,101.41,101.32,146.11925312]
[1770000189351,11.39237643,101.41,101.32,146.11925312]
[1770000190147,138.1719,101.43,101.32,146.11925312]
[1770000190148,8.8828,101.43,101.34,146.09325312]
[1770000190553,8.8828,101.43,101.35,8.8892]
[1770000190753,20.27749064,101.43,101.34,7.80005312]
[1770000190954,20.27809064,101.42,101.33,320.5]
[1770000191153,20.27809064,101.42,101.33,458.8063]
[1770000191855,11.39469064,101.42,101.35,8.8892]
[1770000192054,20.27734104,101.44,101.34,146.08955312]
[1770000192249,11.39534104,101.44,101.34,146.08955312]
[1770000192447,8.8827,101.43,101.35,8.8892]
[1770000192958,11.39534104,101.43,101.36,8.8883]
[1770000194451,371.58791008,101.45,101.37,8.8874]
[1770000194849,371.58791008,101.45,101.38,8.8864]
[1770000195052,11.38791008,101.45,101.38,8.8864]
[1770000195257,11.38791008,101.45,101.38,16.66808573]
[1770000195554,11.38791008,101.45,101.38,7.78168573]
[1770000195856,379.88661014,101.47,101.39,8.8857]
[1770000196257,371.00731014,101.47,101.4,138.2108]
[1770000196458,8.8777,101.49,101.4,138.2108]
[1770000196459,11.38731014,101.49,101.4,145.99248573]
[1770000196656,11.38731014,101.49,101.41,138.1965]
[1770000197059,11.38731014,101.49,101.43,8.8821]
[1770000197862,11.38920299,101.52,101.44,8.8811]
[1770000198453,11.38920299,101.52,101.45,8.8803]
[1770000198653,11.38920299,101.51,101.43,138.1701]
[1770000199058,359.9,101.53,101.45,138.1409]
[1770000199258,371.28920299,101.53,101.45,138.1409]
[1770000199463,11.38920299,101.52,101.44,16.66248573]
[1770000199665,11.38920299,101.52,101.44,8.8808]
[1770000200057,20.25902501,101.51,101.43,8.8823]
[1770000201356,11.38352501,101.51,101.42,145.96548573]
[1770000201969,11.38352501,101.51,101.43,138.1709]
[1770000202361,11.38352501,101.51,101.44,8.8813]
[1770000202556,11.38352501,101.51,101.42,7.78168573]
[1770000202764,11.38217388,101.49,101.42,8.8826]
[1770000203062,11.38217388,101.49,101.4,7.78168573]
[1770000203261,20.26117388,101.47,101.38,154.89568573]
[1770000203458,20.26117388,101.47,101.38,138.2279]
[1770000203459,11.38217388,101.46,101.38,138.2279]
[1770000204365,11.38217388,101.46,101.39,8.8858]
[1770000205761,11.38441859,101.45,101.36,7.78168573]
[1770000205961,149.55621859,101.43,101.33,138.2963]
[1770000206159,11.38441859,101.41,101.34,8.89]
[1770000206364,370.26441859,101.42,101.33,138.3073]
[1770000206560,11.38441859,101.41,101.32,146.09158573]
[1770000206864,11.38441859,101.41,101.34,8.8902]
[1770000207059,11.38441859,101.41,101.34,138.2919]
[1770000207566,11.38441859,101.41,101.35,8.8892]
[1770000208463,11.38441859,101.41,101.36,8.8884]
[1770000208664,11.38065436,101.43,101.36,8.8884]
[1770000209564,11.38065436,101.43,101.35,138.2791]
[1770000211366,11.38065436,101.43,101.36,8.8885]
[1770000211670,11.38065436,101.43,101.34,146.07388573]
[1770000212272,20.26305436,101.43,101.35,8.8893]
[1770000212768,11.36730621,101.42,101.33,138.3064]
[1770000213072,20.25080621,101.42,101.34,8.8902]
[1770000214376,20.25080621,101.42,101.35,8.8892]
[1770000214767,11.36687622,101.4,101.33,8.8904]
[1770000215574,358.34,101.41,101.34,8.8898]
[1770000215772,11.36572056,101.4,101.32,146.10238573]
[1770000215977,11.36572056,101.4,101.31,138.3232]
[1770000216378,11.36572056,101.39,101.3,146.11918573]
[1770000216578,11.36572056,101.38,101.3,138.3375]
[1770000216775,11.36572056,101.38,101.28,170.43816492]
[1770000216776,11.36572056,101.38,101.28,146.14548573]
[1770000216981,11.36572056,101.37,101.3,8.8937]
[1770000217275,322.88572056,101.39,101.3,170.41956492]
[1770000217484,11.36572056,101.39,101.3,170.41956492]
[1770000218372,20.25162056,101.39,101.32,8.8919]
[1770000218577,20.25162056,101.39,101.31,162.62707919]
[1770000218578,11.36572056,101.39,101.31,162.62707919]
[1770000219279,369.48546901,101.42,101.33,138.3056]
[1770000219480,11.36546901,101.42,101.33,138.3056]
[1770000219678,11.36667095,101.41,101.35,8.8891]
[1770000220179,11.36667095,101.41,101.34,138.2916]
[1770000220382,20.24927095,101.43,101.36,8.8883]
[1770000220584,11.36667095,101.42,101.36,8.8883]
[1770000223487,11.36315794,101.41,101.32,170.39526492]
[1770000223783,15.36294446,101.43,101.34,138.2896]
[1770000223977,24.24614446,101.43,101.34,170.36396492]
[1770000224385,11.36294446,101.42,101.34,170.36396492]
[1770000225191,20.24644446,101.42,101.34,40.96406492]
[1770000225586,20.24644446,101.42,101.34,8.8897]
[1770000225986,20.24644446,101.42,101.35,8.8892]
[1770000226388,20.24644446,101.42,101.35,33.18187919]
[1770000227085,11.36301339,101.41,101.34,7.78168573]
[1770000227290,4.0,101.43,101.33,8.8903]
[1770000227291,11.36301339,101.4,101.33,8.8903]
[1770000227990,11.36298955,101.39,101.31,138.3334]
[1770000229091,20.24888955,101.39,101.32,8.892]
[1770000230092,11.35407056,101.37,101.28,24.29267919]
[1770000230387,11.35407056,101.35,101.27,1.71724648]
[1770000230590,20.24447056,101.34,101.27,8.8956]
[1770000231501,11.35407056,101.34,101.27,8.8956]
[1770000233695,11.35407056,101.34,101.25,10.61490074]
[1770000233696,11.35182838,101.33,101.25,10.61490074]
[1770000233894,11.35182838,101.33,101.25,8.8974]
[1770000234092,11.35182838,101.32,101.25,8.8974]
[1770000234303,356.08,101.34,101.26,8.8971]
[1770000234601,11.35182838,101.33,101.25,138.4158]
[1770000235103,11.35182838,101.32,101.25,8.8978]
[1770000236101,11.35182838,101.32,101.26,8.8972]
[1770000236799,11.35100065,101.31,101.24,147.3281]
[1770000237198,11.35100065,101.31,101.24,138.4299]
[1770000239104,11.35100065,101.31,101.23,140.15419747]
[1770000239105,11.35100065,101.31,101.25,8.8978]
[1770000239300,11.35100065,101.31,101.23,1.71779747]
[1770000239698,11.35654019,101.3,101.21,138.4608]
[1770000240304,11.35654019,101.29,101.21,8.901]
[1770000241205,11.35654019,101.31,101.22,138.4562]
[1770000241406,11.35654019,101.31,101.22,146.23788573]
[1770000241603,11.34985315,101.33,101.24,138.4302]
[1770000241906,11.34985315,101.33,101.25,138.4162]
[1770000242209,11.34985315,101.33,101.27,8.8961]
[1770000243102,11.34985315,101.33,101.25,8.8979]
[1770000243807,138.2987,101.34,101.25,8.8979]
[1770000243808,11.33421812,101.31,101.25,8.8979]
[1770000244401,11.33421812,101.3,101.21,146.24288573]
[1770000244706,11.33421812,101.29,101.19,146.26778573]
[1770000245207,11.33421812,101.29,101.19,138.4861]
[1770000245711,20.18356595,101.28,101.19,147.3887]
[1770000245904,11.28786595,101.27,101.19,138.4861]
[1770000246406,11.28786595,101.27,101.21,8.9015]
[1770000247002,11.28786595,101.29,101.22,8.9006]
[1770000248408,20.18256595,101.29,101.22,8.9006]
[1770000249112,11.28786595,101.29,101.23,8.8998]
[1770000249404,11.28786595,101.29,101.21,138.4695]
[1770000249405,365.39959299,101.31,101.22,138.4557]
[1770000249611,11.27959299,101.31,101.23,146.22198573]
[1770000250106,20.17249299,101.31,101.23,16.68078573]
[1770000250305,20.17249299,101.31,101.22,138.4557]
[1770000250809,20.17210602,101.3,101.21,465.13118573]
[1770000251005,11.27830602,101.29,101.21,138.4695]
[1770000251209,11.27830602,101.29,101.2,138.4844]
[1770000251904,11.27646986,101.28,101.2,138.4844]
[1770000253408,20.17196986,101.28,101.21,8.9017]
[1770000254113,11.27646986,101.28,101.22,8.9007]
[1770000255815,20.17660354,101.3,101.23,8.8999]
[1770000258211,11.28219579,101.28,101.19,9.52272996]
[1770000258410,11.28219579,101.28,101.18,457.4196]
[1770000259006,20.17869579,101.27,101.18,457.4196]
[1770000259211,11.28219579,101.29,101.2,138.4846]
[1770000259412,20.17689579,101.29,101.22,8.9007]
[1770000259812,11.28826858,101.28,101.22,8.9007]
[1770000260418,11.28826858,101.28,101.23,8.8999]
[1770000260615,11.28826858,101.3,101.22,138.4549]
[1770000260915,11.28826858,101.3,101.21,146.26596901]
[1770000261315,20.18206858,101.3,101.23,8.8991]
[1770000261708,11.30143867,101.29,101.2,138.4846]
[1770000261912,20.19613867,101.29,101.22,8.9004]
[1770000262112,11.30143867,101.28,101.22,8.9004]
[1770000262309,11.30143867,101.28,101.19,146.29826901]
[1770000262618,20.19703867,101.28,101.2,8.9019]
[1770000262917,20.19703867,101.28,101.19,146.29826901]
[1770000263415,11.30143867,101.24,101.15,162.83647919]
[1770000263619,11.30143867,101.24,101.14,146.35986901]
[1770000264017,20.20113867,101.24,101.15,138.5527]
[1770000264213,11.30143867,101.24,101.16,138.5328]
[1770000264409,11.30143867,101.24,101.16,146.33696901]
[1770000264812,11.30143867,101.24,101.16,155.24236901]
[1770000265009,11.30143867,101.24,101.16,8.9054]
[1770000266317,11.32372636,101.22,101.14,140.27511006]
[1770000266616,11.32372636,101.21,101.12,138.5836]
[1770000267520,11.32372636,101.21,101.14,8.9073]
[1770000267716,11.32372636,101.21,101.13,277.1501]
[1770000268112,11.31907019,101.2,101.13,8.908]
[1770000268514,11.31907019,101.2,101.14,8.9078]
[1770000269925,11.31907019,101.2,101.15,8.9069]
[1770000270121,362.71822103,101.22,101.14,138.5671]
[1770000270324,11.31822103,101.22,101.15,138.5529]
[1770000270822,351.36,101.24,101.17,138.5241]
[1770000271125,351.36,101.24,101.16,146.34326901]
[1770000271325,11.31822103,101.23,101.16,8.9055]
[1770000272024,11.31652416,101.22,101.14,155.27836901]
[1770000272620,11.31652416,101.22,101.15,8.9069]
[1770000272825,11.31652416,101.21,101.13,138.5794]
[1770000273822,20.21832416,101.21,101.13,8.9079]
[1770000274828,20.21832416,101.21,101.14,8.9078]
[1770000275326,11.31652416,101.21,101.14,8.9078]
[1770000275520,11.31652416,101.21,101.15,8.9069]
[1770000275726,11.31652416,101.21,101.14,146.36826901]
[1770000276519,20.26686036,101.25,101.16,277.0664]
[1770000276729,20.26686036,101.25,101.17,138.5251]
[1770000276730,11.36846036,101.25,101.17,138.5251]
[1770000276927,11.36846036,101.25,101.18,7.80416901]
[1770000277827,362.25131535,101.28,101.2,7.80416901]
[1770000278131,11.37131535,101.28,101.2,7.80416901]
[1770000278521,20.26791535,101.27,101.2,8.9026]
[1770000278721,11.37131535,101.26,101.18,7.80416901]
[1770000280132,11.37131535,101.26,101.19,138.4972]
[1770000280722,11.37131535,101.26,101.18,146.31586901]
[1770000282026,11.37131535,101.26,101.2,7.80416901]
[1770000283730,11.37131535,101.26,101.2,8.9021]
[1770000283925,11.37131535,101.26,101.19,138.4927]
[1770000285326,11.37131535,101.26,101.21,8.9014]
[1770000288631,11.37131535,101.26,101.17,24.29267919]
[1770000288827,11.30455702,101.25,101.15,32.0968482]
[1770000289335,11.30455702,101.22,101.14,24.29267919]
[1770000289535,11.30455702,101.2,101.12,24.29267919]
[1770000289730,11.30455702,101.2,101.11,170.6973482]
[1770000289932,11.30455702,101.2,101.11,138.6005]
[1770000290634,11.29543058,101.19,101.13,8.9087]
[1770000291129,11.29543058,101.21,101.13,146.38466901]
[1770000291335,11.29543058,101.21,101.14,138.566]
[1770000291532,11.29543058,101.21,101.13,146.38466901]
[1770000292327,11.29543058,101.21,101.15,8.9067]
[1770000292528,11.29543058,101.21,101.13,146.38466901]
[1770000292728,11.31388048,101.2,101.12,459.37353494]
[1770000293037,350.32,101.23,101.15,8.9069]
[1770000293234,11.31388048,101.22,101.15,8.9069]
[1770000293433,11.31388048,101.22,101.14,138.5587]
[1770000293832,11.31388048,101.22,101.16,8.9059]
[1770000294038,20.21498048,101.22,101.13,284.95186901]
[1770000294339,11.31547184,101.21,101.13,284.95186901]
[1770000295043,11.31547184,101.21,101.15,8.9069]
[1770000295441,20.21717184,101.21,101.13,16.71216901]
[1770000295638,11.31547184,101.2,101.13,8.908]
[1770000295834,11.31547184,101.2,101.12,138.5916]
[1770000296536,11.31547184,101.2,101.15,8.9069]
[1770000298142,11.31547184,101.2,101.13,8.9081]
[1770000298538,11.31547184,101.2,101.12,138.5916]
[1770000298746,11.31547184,101.2,101.12,162.88427919]
[1770000299042,11.31547184,101.2,101.13,138.5772]
[1770000299242,11.31547184,101.2,101.13,146.38136901]
[1770000299438,11.31547184,101.2,101.13,170.6740482]
[1770000299943,11.31547184,101.2,101.14,138.5671]
[1770000300239,142.388,101.28,101.17,138.5258]
[1770000300240,11.32262903,101.26,101.17,138.5258]
[1770000300641,11.32262903,101.26,101.2,8.9024]
[1770000300840,11.32262903,101.28,101.21,138.4711]
[1770000301042,11.32262903,101.31,101.22,146.26096901]
[1770000301239,11.32262903,101.3,101.24,8.899]
[1770000301443,11.32262903,101.32,101.25,138.4162]
[1770000301638,11.36918466,101.31,101.22,146.25926901]
[1770000301942,11.36918466,101.31,101.23,138.4432]
[1770000302248,11.36918466,101.34,101.27,8.8963]
[1770000302446,11.36918466,101.34,101.25,138.415]
[1770000302649,11.36918466,101.34,101.24,146.23386901]
[1770000302839,11.36918466,101.34,101.26,138.4022]
[1770000303040,11.36918466,101.34,101.26,146.20636901]
[1770000303243,11.36918466,101.34,101.24,146.23386901]
[1770000303445,11.36918466,101.32,101.22,7.80416901]
[1770000303649,11.36918466,101.32,101.22,146.26116901]
[1770000304347,11.35301706,101.3,101.2,456.41686901]
[1770000304550,11.35301706,101.31,101.22,138.4576]
[1770000304850,11.35301706,101.3,101.22,138.4572]
[1770000305447,11.35301706,101.29,101.21,8.9013]
[1770000305845,11.35301706,101.29,101.19,138.4866]
[1770000306049,355.88416901,101.29,101.2,138.484]
[1770000306246,359.43654933,101.29,101.21,138.4697]
[1770000306752,359.43654933,101.29,101.22,8.9006]
[1770000307347,359.43654933,101.29,101.23,8.8998]
[1770000307348,11.35654933,101.29,101.23,8.8998]
[1770000308554,11.35654933,101.29,101.22,8.9007]
[1770000308751,11.35654933,101.29,101.2,7.80416901]
[1770000308954,11.35654933,101.29,101.19,138.4986]
[1770000309155,20.25884374,101.28,101.2,8.9023]
[1770000309354,11.36314374,101.28,101.19,138.4986]
[1770000309747,11.37152561,101.27,101.19,8.9028]
[1770000309954,11.37152561,101.27,101.16,138.5272]
[1770000309955,11.37152561,101.26,101.16,146.33136901]
[1770000310149,11.37152561,101.25,101.14,516.89928833]
[1770000310347,11.37152561,101.24,101.15,138.5535]
[1770000310950,20.27072561,101.24,101.16,8.906]
[1770000311155,19.17569462,101.23,101.14,378.34058833]
[1770000311350,11.37152561,101.22,101.14,378.34058833]
[1770000312456,11.37152561,101.22,101.14,387.24788833]
[1770000312658,11.37152561,101.22,101.14,516.90738833]
[1770000312858,359.35552952,101.23,101.15,147.4602]
[1770000313054,11.37552952,101.22,101.15,8.9068]
[1770000313260,11.37552952,101.22,101.14,524.71155734]
[1770000313261,11.37552952,101.22,101.14,378.34058833]
[1770000313554,11.37552952,101.22,101.15,138.5524]
[1770000313760,11.37638231,101.25,101.16,146.34306901]
[1770000314756,11.37638231,101.25,101.17,8.9048]
[1770000315061,11.37638231,101.25,101.15,138.5524]
[1770000315655,11.37743307,101.23,101.14,870.18253653]
[1770000315957,11.37743307,101.22,101.14,378.34058833]
[1770000316457,11.37743307,101.21,101.14,378.34058833]
[1770000316958,11.37743307,101.2,101.11,172.4316113]
[1770000317264,11.37743307,101.2,101.11,138.599]
[1770000317461,11.37743307,101.2,101.11,138.6073]
[1770000317756,11.37743307,101.2,101.13,8.9086]
[1770000317961,11.37099207,101.23,101.15,138.5536]
[1770000318263,11.37099207,101.23,101.17,8.9051]
[1770000318959,11.37099207,101.23,101.16,8.9059]
[1770000319161,11.37099207,101.23,101.16,138.5395]
[1770000319759,20.26589613,101.26,101.18,8.9042]
[1770000319957,11.36789613,101.25,101.16,24.29267919]
[1770000320166,11.36789613,101.25,101.16,138.5399]
[1770000320356,347.14,101.27,101.19,138.4981]
[1770000320556,358.50789613,101.27,101.19,138.4981]
[1770000320762,358.50789613,101.27,101.2,8.9024]
[1770000321058,11.36789613,101.26,101.17,32.11273387]
[1770000321263,11.36789613,101.26,101.16,162.83257919]
[1770000321655,11.35445394,101.24,101.16,147.4453]
[1770000321960,11.35445394,101.24,101.16,8.9054]
[1770000322356,11.35445394,101.23,101.14,33.19997919]
[1770000322556,11.35445394,101.23,101.14,162.85937919]
[1770000322961,11.35445394,101.23,101.16,8.906]
[1770000323465,347.02,101.25,101.17,8.9051]
[1770000323666,11.34927686,101.24,101.17,8.9051]
[1770000323861,11.34927686,101.22,101.14,24.29267919]
[1770000324063,11.34927686,101.2,101.12,24.29267919]
[1770000324364,11.34927686,101.2,101.1,162.90187919]
[1770000324561,11.34927686,101.19,101.12,8.9095]
[1770000324959,11.34927686,101.17,101.11,24.29267919]
[1770000325163,11.34927686,101.16,101.09,24.29267919]
[1770000325460,11.34927686,101.15,101.07,24.29267919]
[1770000325872,11.34984232,101.18,101.09,138.6345]
[1770000326066,11.34984232,101.17,101.08,24.29267919]
[1770000326365,11.34984232,101.13,101.03,138.7143]
[1770000326564,11.34984232,101.12,101.03,138.7143]
[1770000327473,11.34984232,101.12,101.04,8.9164]
[1770000327673,149.94654232,101.12,101.01,138.7374]
[1770000327868,11.34850326,101.1,101.03,8.9169]
[1770000328170,11.34850326,101.12,101.03,138.7169]
[1770000328569,11.34850326,101.12,101.02,148.27134862]
[1770000328972,11.34850326,101.12,101.03,138.7132]
[1770000329160,11.34850326,101.12,101.02,148.27134862]
[1770000329366,11.34850326,101.09,101.0,138.7579]